bitfinex/quotes_BTCUSD_20251027
["timestamp","ask_amount","ask_price","bid_price","bid_amount"]
[1761553812981,0.02313238,115250.0,115240.0,0.17355085]
[1761553813213,0.05404852,115260.0,115250.0,0.17353579]
[1761553813451,0.05404852,115260.0,115250.0,0.19088936]
[1761553813452,0.02327764,115260.0,115250.0,0.19088936]
[1761553814353,1e-08,115260.0,115250.0,0.99358613]
[1761553814575,1e-08,115260.0,115250.0,0.51353579]
[1761553814790,0.00400001,115260.0,115250.0,0.58224445]
[1761553815005,1e-08,115260.0,115250.0,1.04494122]
[1761553815220,1e-08,115260.0,115250.0,1.04594122]
[1761553815430,1e-08,115260.0,115250.0,1.05294122]
[1761553815647,1e-08,115260.0,115250.0,1.04494122]
[1761553816128,1e-08,115260.0,115250.0,1.06594122]
[1761553816589,1e-08,115260.0,115250.0,0.60324445]
[1761553817255,1e-08,115260.0,115250.0,0.60424445]
[1761553817470,1e-08,115260.0,115250.0,1.04594122]
[1761553817687,1e-08,115260.0,115250.0,1.04494122]
[1761553817913,1e-08,115260.0,115250.0,1.06594122]
[1761553818136,1e-08,115260.0,115250.0,0.61819894]
[1761553818363,1e-08,115260.0,115250.0,0.25719894]
[1761553818583,1e-08,115260.0,115250.0,0.27819894]
[1761553820359,1e-08,115260.0,115250.0,0.27919894]
[1761553821703,1e-08,115260.0,115250.0,0.26424445]
[1761553826780,1e-08,115260.0,115250.0,1.24285055]
[1761553827488,1e-08,115260.0,115250.0,1.25780618]
[1761553828139,0.00263539,115260.0,115250.0,1.25780618]
[1761553828579,0.00263539,115260.0,115250.0,0.61920008]
[1761553830243,0.00263539,115260.0,115250.0,1.25780618]
[1761553830464,0.00263539,115260.0,115250.0,0.61920008]
[1761553830714,1e-08,115260.0,115250.0,1.25780618]
[1761553830890,1e-08,115260.0,115250.0,1.55762518]
[1761553831315,1e-08,115260.0,115250.0,1.56762517]
[1761553831691,1e-08,115260.0,115250.0,1.58885182]
[1761553832289,1e-08,115260.0,115250.0,0.95024572]
[1761553832521,1e-08,115260.0,115250.0,1.58885182]
[1761553833167,0.0002,115290.0,115280.0,0.51349063]
[1761553833379,0.0002,115290.0,115280.0,0.64671161]
[1761553833606,0.0002,115290.0,115280.0,0.69314215]
[1761553834222,0.0002,115290.0,115280.0,0.64671161]
[1761553834753,0.0002,115290.0,115280.0,0.66371161]
[1761553835158,0.0002,115290.0,115280.0,0.686891]
[1761553835398,0.0002,115290.0,115280.0,0.66371161]
[1761553835610,0.0002,115290.0,115280.0,0.64671161]
[1761553836072,0.0002,115290.0,115280.0,0.66871161]
[1761553836289,0.0002,115290.0,115280.0,0.69187772]
[1761553836668,0.0002,115290.0,115280.0,0.66871161]
[1761553837227,0.0002,115290.0,115280.0,0.69286831]
[1761553838431,0.0002,115290.0,115280.0,0.66191462]
[1761553838821,0.00081888,115290.0,115280.0,0.66191462]
[1761553839456,0.00081888,115290.0,115280.0,0.66185509]
[1761553843310,0.00081888,115290.0,115280.0,0.69280878]
[1761553843528,0.79576602,115340.0,115320.0,0.17343045]
[1761553843742,0.08981901,115330.0,115320.0,0.18927653]
[1761553843942,0.08981901,115330.0,115320.0,0.17343045]
[1761553844576,0.17343403,115320.0,115300.0,0.17345999]
[1761553844797,0.08981901,115310.0,115300.0,0.17345999]
[1761553845465,0.72842511,115310.0,115300.0,0.17345999]
[1761553845911,0.72842511,115310.0,115300.0,0.18045999]
[1761553846118,0.72842511,115310.0,115300.0,0.18046053]
[1761553846276,0.72842511,115310.0,115300.0,0.17346053]
[1761553846525,0.08981901,115310.0,115300.0,0.20901721]
[1761553847502,0.72942511,115310.0,115300.0,0.18046053]
[1761553847711,0.09081901,115310.0,115300.0,0.18046053]
[1761553847910,0.08981901,115310.0,115300.0,0.17346053]
[1761553848187,0.08981901,115310.0,115300.0,0.18546053]
[1761553848664,0.08981901,115310.0,115300.0,0.17346053]
[1761553848797,0.08981901,115310.0,115300.0,0.18346053]
[1761553849222,0.08981901,115310.0,115300.0,0.22001722]
[1761553854797,0.09023147,115310.0,115300.0,0.18346053]
[1761553855214,0.10623122,115310.0,115300.0,0.18346053]
[1761553855633,0.76360383,115310.0,115300.0,0.18346053]
[1761553855847,0.74483732,115310.0,115300.0,0.18346053]
[1761553857123,0.74583732,115310.0,115300.0,0.17346053]
[1761553857533,0.74583732,115310.0,115300.0,0.18046053]
[1761553857922,0.10723122,115310.0,115300.0,0.18046053]
[1761553858173,0.74583732,115310.0,115300.0,0.18046053]
[1761553862230,0.74583732,115310.0,115300.0,0.20361723]
[1761553863135,0.10723122,115310.0,115300.0,0.20361723]
[1761553863568,0.28067671,115310.0,115300.0,0.20361723]
[1761553863770,0.5405531,115310.0,115300.0,0.20361723]
[1761553864417,0.71399859,115310.0,115300.0,0.007]
[1761553864834,0.75018087,115310.0,115300.0,0.007]
[1761553866011,1.20744087,115310.0,115300.0,0.007]
[1761553866424,1.09018087,115310.0,115300.0,0.007]
[1761553866641,1.28514187,115310.0,115300.0,0.007]
[1761553866848,1.09018087,115310.0,115300.0,0.007]
[1761553868069,1.05399859,115310.0,115300.0,0.007]
[1761553868415,1.09018087,115310.0,115300.0,0.007]
[1761553869409,3.09018087,115310.0,115300.0,0.007]
[1761553869874,0.17349063,115280.0,115270.0,0.05411039]
[1761553870086,1.16471966,115280.0,115270.0,0.0231567]
[1761553870308,0.03618228,115270.0,115260.0,0.22763046]
[1761553870523,0.08981901,115270.0,115260.0,0.22782089]
[1761553870738,0.08981901,115270.0,115260.0,0.20447376]
[1761553870966,0.52314089,115270.0,115260.0,0.2509043]
[1761553871171,0.52314089,115270.0,115260.0,0.20447376]
[1761553871798,0.69664657,115270.0,115260.0,0.04295369]
[1761553872009,0.69664657,115270.0,115260.0,0.06629466]
[1761553872212,0.69664657,115270.0,115260.0,0.23981539]
[1761553872849,0.69664657,115270.0,115260.0,0.06629466]
[1761553873078,0.73282885,115270.0,115260.0,0.06629466]
[1761553874092,0.73282885,115270.0,115260.0,0.23981539]
[1761553874722,0.73282885,115270.0,115260.0,0.18552073]
[1761553874924,0.29950697,115270.0,115260.0,0.18552073]
[1761553875052,0.73282885,115270.0,115260.0,0.18552073]
[1761553875646,0.55932317,115270.0,115260.0,0.18552073]
[1761553875850,0.08981901,115270.0,115260.0,0.18552073]
[1761553876091,0.08981901,115270.0,115260.0,0.22229398]
[1761553876832,0.08981901,115270.0,115260.0,0.18552073]
[1761553877043,0.47832277,115300.0,115290.0,0.17347558]
[1761553877245,0.11619919,115300.0,115290.0,0.19082313]
[1761553877460,0.09017107,115300.0,115290.0,0.19082313]
[1761553879126,0.00035206,115300.0,115290.0,0.62414501]
[1761553879333,0.00035206,115300.0,115290.0,0.68656102]
[1761553879746,0.00035206,115300.0,115290.0,0.59323914]
[1761553880154,0.00035206,115300.0,115290.0,0.59623914]
[1761553880551,0.00035206,115300.0,115290.0,0.59323914]
[1761553880774,0.00035206,115300.0,115290.0,0.60123914]
[1761553880979,0.00035206,115300.0,115290.0,0.60106096]
[1761553881224,0.00035206,115300.0,115290.0,0.59306096]
[1761553881569,0.00035206,115300.0,115290.0,0.60406096]
[1761553881774,0.00035206,115300.0,115290.0,1.06543899]
[1761553883676,0.00035206,115300.0,115290.0,1.07412444]
[1761553884890,1e-08,115300.0,115290.0,1.07412444]
[1761553885116,1e-08,115300.0,115290.0,1.17394344]
[1761553885338,1e-08,115300.0,115290.0,1.37394344]
[1761553886204,1e-08,115300.0,115290.0,1.36294344]
[1761553886414,1e-08,115300.0,115290.0,1.37394344]
[1761553886847,1e-08,115300.0,115290.0,1.36294344]
[1761553887256,1e-08,115300.0,115290.0,1.37994344]
[1761553887952,1e-08,115300.0,115290.0,1.38094344]
[1761553890648,1e-08,115300.0,115290.0,1.41712572]
[1761553891762,1e-08,115350.0,115340.0,0.51340038]
[1761553891973,0.0002,115410.0,115400.0,0.17331022]
[1761553892230,0.09050552,115410.0,115400.0,0.17331022]
[1761553892425,0.57065006,115410.0,115400.0,0.17331022]
[1761553892670,0.55188355,115410.0,115400.0,0.17331022]
[1761553893089,0.09050552,115410.0,115400.0,0.17331022]
[1761553893308,0.09050552,115410.0,115400.0,0.17531022]
[1761553893513,0.09050552,115410.0,115400.0,0.17331022]
[1761553893842,0.55188355,115410.0,115400.0,0.17331022]
[1761553894614,0.09050552,115410.0,115400.0,0.22530479]
[1761553894802,0.09050552,115410.0,115400.0,0.20797377]
[1761553895618,0.55188355,115410.0,115400.0,0.17331022]
[1761553896079,0.58806583,115410.0,115400.0,0.17331022]
[1761553896289,0.03618228,115400.0,115390.0,0.17332524]
[1761553896497,0.60614583,115400.0,115390.0,0.17332524]
[1761553896698,0.58737932,115400.0,115390.0,0.17332524]
[1761553897213,0.55119704,115400.0,115390.0,0.17332524]
[1761553897412,0.58737932,115400.0,115390.0,0.17332524]
[1761553897596,0.58943992,115400.0,115390.0,0.17332524]
[1761553897801,0.58943992,115400.0,115390.0,0.17532524]
[1761553898226,0.58913692,115400.0,115390.0,0.17532524]
[1761553898991,0.12775889,115400.0,115390.0,0.21105575]
[1761553900262,0.09157661,115400.0,115390.0,0.21105575]
[1761553900691,0.09157661,115400.0,115390.0,0.17532524]
[1761553900924,0.55295464,115400.0,115390.0,0.17532524]
[1761553901136,0.76244714,115400.0,115390.0,0.002]
[1761553902188,0.76344714,115400.0,115390.0,0.002]
[1761553902400,0.76344714,115400.0,115380.0,0.1733398]
[1761553902607,0.01876651,115390.0,115380.0,0.1733398]
[1761553902830,0.56996355,115390.0,115380.0,0.1733398]
[1761553903036,0.55119704,115390.0,115380.0,0.1733398]
[1761553903522,0.26314425,115390.0,115380.0,0.17334026]
[1761553903726,0.72452228,115390.0,115380.0,0.17334026]
[1761553903941,0.72452228,115390.0,115380.0,0.17534026]
[1761553904158,0.72452228,115390.0,115380.0,0.002]
[1761553904159,1.10070456,115390.0,115380.0,0.002]
[1761553904367,2.38767256,115390.0,115380.0,0.002]
[1761553905424,0.51335194,115380.0,115360.0,0.18203829]
[1761553905630,0.51335194,115380.0,115360.0,0.21844694]
[1761553905631,0.08981901,115370.0,115360.0,0.21844694]
[1761553906020,0.08981901,115370.0,115360.0,0.18203829]
[1761553906628,0.2631743,115370.0,115360.0,0.00866851]
[1761553906835,0.72503854,115370.0,115350.0,0.18204824]
[1761553906982,0.65351485,115360.0,115350.0,0.00866926]
[1761553907218,0.72456735,115360.0,115340.0,0.17340038]
[1761553907449,0.55119704,115350.0,115340.0,0.17340038]
[1761553908087,0.08981901,115350.0,115340.0,0.17340038]
[1761553908499,0.09084976,115350.0,115340.0,0.17340038]
[1761553909423,0.09084976,115350.0,115340.0,0.17740038]
[1761553910383,0.09084976,115350.0,115340.0,0.17440038]
[1761553911029,0.09084976,115350.0,115340.0,0.21004638]
[1761553912182,0.09084976,115350.0,115340.0,0.17440038]
[1761553912589,0.55222779,115350.0,115340.0,0.004]
[1761553912793,0.72561313,115350.0,115340.0,0.004]
[1761553912996,0.72561313,115350.0,115340.0,0.17740038]
[1761553913953,0.2642351,115350.0,115340.0,0.17740038]
[1761553914151,0.72561313,115350.0,115340.0,0.17729286]
[1761553914355,0.55222779,115350.0,115340.0,0.17729286]
[1761553914671,0.55222779,115350.0,115340.0,0.17340038]
[1761553915106,0.09084976,115350.0,115340.0,0.17540038]
[1761553915687,0.2642351,115350.0,115340.0,0.17540038]
[1761553916596,0.72561313,115350.0,115340.0,0.17540038]
[1761553917415,0.72561313,115350.0,115340.0,0.002]
[1761553917607,0.76179541,115350.0,115340.0,0.002]
[1761553918354,0.76179541,115350.0,115330.0,0.17341078]
[1761553918585,0.7441886,115340.0,115330.0,0.17341078]
[1761553918809,0.72542209,115340.0,115330.0,0.17341078]
[1761553920057,0.72542209,115340.0,115330.0,0.17541078]
[1761553920543,0.09064368,115340.0,115330.0,0.17541078]
[1761553921261,0.09064368,115340.0,115330.0,0.21115652]
[1761553921395,0.09064368,115340.0,115330.0,0.17541078]
[1761553921823,0.09064368,115340.0,115330.0,0.19275232]
[1761553922247,0.09064368,115340.0,115330.0,0.17541078]
[1761553923240,0.09064368,115340.0,115330.0,0.17641078]
[1761553923630,0.09064368,115340.0,115330.0,0.17541078]
[1761553923823,0.09064368,115340.0,115330.0,0.17541541]
[1761553924035,0.72542209,115340.0,115330.0,0.17541541]
[1761553924252,0.72542209,115340.0,115330.0,0.17341541]
[1761553924700,0.72542209,115340.0,115330.0,0.18041541]
[1761553925667,0.72542209,115340.0,115330.0,0.17341541]
[1761553926397,0.09064368,115340.0,115330.0,0.17741541]
[1761553926654,0.26404406,115340.0,115330.0,0.17741541]
[1761553927355,0.72542209,115340.0,115330.0,0.17741541]
[1761553927567,0.55202171,115340.0,115330.0,0.17341541]
[1761553927771,0.09064368,115340.0,115330.0,0.17341541]
[1761553927980,0.09064368,115340.0,115330.0,0.17541541]
[1761553929608,0.09064368,115340.0,115330.0,0.22850315]
[1761553929840,0.09064368,115340.0,115330.0,0.21116161]
[1761553930047,0.09064368,115340.0,115330.0,0.17541541]
[1761553933407,0.09064368,115340.0,115330.0,0.19275695]
[1761553935507,0.09064368,115340.0,115330.0,0.17541541]
[1761553940021,0.09064368,115340.0,115330.0,0.19275695]
[1761553940224,0.09064368,115340.0,115330.0,0.17541541]
[1761553941298,0.09064368,115340.0,115330.0,0.19275695]
[1761553941659,0.09064368,115340.0,115330.0,0.2302373]
[1761553941867,0.09064368,115340.0,115330.0,0.21289576]
[1761553943674,0.09064368,115340.0,115330.0,0.17541541]
[1761553943891,0.09064368,115340.0,115330.0,0.19275695]
[1761553950012,0.00082467,115340.0,115330.0,1.17051418]
[1761553950213,0.00082467,115340.0,115330.0,1.15317264]
[1761553950648,0.00082467,115340.0,115330.0,0.51541541]
[1761553950881,0.00082467,115340.0,115330.0,0.60523442]
[1761553951281,0.00082467,115340.0,115330.0,0.60323442]
[1761553951432,0.00082467,115340.0,115330.0,1.28756276]
[1761553951638,0.00082467,115340.0,115330.0,1.29156276]
[1761553954296,0.00082467,115340.0,115330.0,1.28856276]
[1761553954703,0.00082467,115340.0,115330.0,1.29856276]
[1761553959221,1e-08,115340.0,115330.0,1.29856276]
[1761553962860,1e-08,115340.0,115330.0,0.6919009]
[1761553963079,1e-08,115340.0,115330.0,0.64532979]
[1761553963360,1e-08,115340.0,115330.0,0.61423442]
[1761553964022,1e-08,115340.0,115330.0,0.60323442]
[1761553964241,1e-08,115340.0,115330.0,0.61023442]
[1761553965426,1e-08,115340.0,115330.0,0.61123442]
[1761553968501,1e-08,115340.0,115330.0,1.04411062]
[1761553969556,1e-08,115340.0,115330.0,0.61123442]
[1761553970101,1e-08,115340.0,115330.0,0.18141541]
[1761553970300,0.08981902,115340.0,115330.0,0.18141541]
[1761553975632,1e-08,115340.0,115330.0,0.18141541]
[1761553975840,1e-08,115340.0,115330.0,0.66086272]
[1761553979280,1e-08,115340.0,115330.0,0.61429161]
[1761553980871,1e-08,115340.0,115330.0,0.95429161]
[1761553981054,1e-08,115340.0,115330.0,0.9642916]
[1761553981261,1e-08,115340.0,115330.0,1.02638641]
[1761553982863,1e-08,115340.0,115330.0,1.01638642]
[1761553983293,1e-08,115340.0,115330.0,1.02638641]
[1761553984641,1e-08,115340.0,115330.0,1.01638642]
[1761553984829,1e-08,115340.0,115330.0,1.02638641]
[1761553984969,1e-08,115340.0,115330.0,1.01638642]
[1761553992398,1e-08,115340.0,115330.0,1.02638641]
[1761553995459,1e-08,115340.0,115330.0,0.59351021]
[1761553995733,1e-08,115340.0,115330.0,1.02638641]
[1761553997834,1e-08,115340.0,115330.0,1.15396869]
[1761553998034,1e-08,115340.0,115330.0,1.16396868]
[1761553998369,1e-08,115340.0,115330.0,1.18997198]
[1761553998965,1e-08,115340.0,115330.0,1.34145198]
[1761553999165,1e-08,115340.0,115330.0,1.33445198]
[1761553999402,1e-08,115340.0,115330.0,1.33545198]
[1761553999613,1e-08,115340.0,115330.0,1.33745199]
[1761553999807,1e-08,115340.0,115330.0,1.34745198]
[1761554002505,1e-08,115340.0,115330.0,1.1228297]
[1761554002710,1e-08,115340.0,115330.0,1.2753097]
[1761554002953,1e-08,115340.0,115330.0,1.21321489]
[1761554003804,1e-08,115340.0,115330.0,1.25711684]
[1761554004017,1e-08,115340.0,115330.0,1.26711683]
[1761554005953,1e-08,115340.0,115330.0,1.04919684]
[1761554006151,1e-08,115340.0,115330.0,0.88795067]
[1761554006364,1e-08,115340.0,115330.0,0.40117253]
[1761554006567,1e-08,115340.0,115330.0,0.18641541]
[1761554006975,1e-08,115340.0,115330.0,0.67319355]
[1761554007128,1e-08,115340.0,115330.0,0.67219355]
[1761554007332,1e-08,115340.0,115330.0,0.66019355]
[1761554007539,1e-08,115340.0,115330.0,0.17341541]
[1761554007719,1e-08,115340.0,115330.0,0.68753509]
[1761554007920,1e-08,115340.0,115330.0,0.67019355]
[1761554008125,1e-08,115340.0,115330.0,0.17341541]
[1761554008352,1e-08,115340.0,115330.0,0.67753509]
[1761554008567,1e-08,115340.0,115330.0,0.22816526]
[1761554008716,1e-08,115340.0,115330.0,0.7149434]
[1761554008915,1e-08,115340.0,115330.0,0.7139434]
[1761554009183,1e-08,115340.0,115330.0,1.06951067]
[1761554009670,1e-08,115340.0,115330.0,1.09551846]
[1761554010067,1e-08,115340.0,115330.0,1.03320134]
[1761554010228,1e-08,115340.0,115330.0,0.52041541]
[1761554010419,1e-08,115340.0,115330.0,0.51441541]
[1761554010827,1e-08,115340.0,115330.0,0.52441541]
[1761554011634,1e-08,115340.0,115330.0,1.01119355]
[1761554012881,1e-08,115340.0,115330.0,1.05794147]
[1761554013087,1e-08,115340.0,115330.0,1.01119355]
[1761554015015,1e-08,115340.0,115330.0,0.52441541]
[1761554015211,1e-08,115340.0,115330.0,1.01119355]
[1761554018687,1e-08,115340.0,115330.0,0.52441541]
[1761554018855,1e-08,115340.0,115330.0,1.01119355]
[1761554020589,1e-08,115340.0,115330.0,1.07351067]
[1761554020824,1e-08,115340.0,115330.0,1.01119355]
[1761554023425,1e-08,115340.0,115330.0,0.52441541]
[1761554023652,1e-08,115340.0,115330.0,1.01119355]
[1761554023860,0.54221815,115340.0,115330.0,0.23115636]
[1761554024074,1e-08,115340.0,115330.0,0.7179345]
[1761554024278,0.20804001,115340.0,115330.0,0.7179345]
[1761554024486,0.20804001,115340.0,115330.0,0.23115636]
[1761554024751,0.20804001,115340.0,115330.0,0.23015636]
[1761554025223,0.20804001,115340.0,115330.0,0.22015636]
[1761554025427,0.20804001,115340.0,115330.0,0.22415636]
[1761554025839,0.69481815,115340.0,115330.0,0.22415636]
[1761554026047,0.20804001,115340.0,115330.0,0.22415636]
[1761554026305,1e-08,115340.0,115330.0,0.7109345]
[1761554026508,0.15260001,115340.0,115330.0,0.22415636]
[1761554026726,1e-08,115340.0,115330.0,0.22415636]
[1761554026940,0.15260001,115340.0,115330.0,0.22415636]
[1761554028386,0.63937815,115340.0,115330.0,0.22415636]
[1761554028570,0.15260001,115340.0,115330.0,0.22415636]
[1761554033113,0.63937815,115340.0,115330.0,0.22415636]
[1761554033536,0.15260001,115340.0,115330.0,0.22415636]
[1761554033947,0.63937815,115340.0,115330.0,0.22415636]
[1761554034121,0.63937815,115340.0,115330.0,0.17741541]
[1761554037075,0.63937815,115340.0,115330.0,0.19475695]
[1761554039081,0.15260001,115340.0,115330.0,0.19475695]
[1761554039278,0.63937815,115340.0,115330.0,0.19475695]
[1761554039961,0.15260001,115340.0,115330.0,0.19475695]
[1761554040204,0.63937815,115340.0,115330.0,0.19475695]
[1761554040413,0.15260001,115340.0,115330.0,0.19475695]
[1761554040625,0.63937815,115340.0,115330.0,0.19475695]
[1761554041477,0.15260001,115340.0,115330.0,0.19475695]
[1761554045169,0.15260001,115340.0,115330.0,0.17741541]
[1761554045381,0.63937815,115340.0,115330.0,0.17741541]
[1761554046692,0.15260001,115340.0,115330.0,0.17741541]
[1761554046889,0.15260001,115340.0,115330.0,0.68153509]
[1761554047212,0.15260001,115340.0,115330.0,0.17741541]
[1761554047478,0.15260001,115340.0,115330.0,0.19475695]
[1761554049859,0.63937815,115340.0,115330.0,0.19475695]
[1761554050067,0.63937815,115340.0,115330.0,0.17741541]
[1761554050261,0.15260001,115340.0,115330.0,0.17741541]
[1761554050462,0.15252001,115340.0,115330.0,0.19475695]
[1761554050906,0.15252001,115340.0,115330.0,0.17741541]
[1761554051268,0.63929815,115340.0,115330.0,0.17741541]
[1761554051452,0.63929815,115340.0,115330.0,0.19475695]
[1761554052637,0.15252001,115340.0,115330.0,0.19475695]
[1761554053042,0.63929815,115340.0,115330.0,0.19475695]
[1761554053607,0.63929815,115340.0,115330.0,0.17741541]
[1761554054566,0.15252001,115340.0,115330.0,0.17741541]
[1761554054778,0.63929815,115340.0,115330.0,0.17741541]
[1761554055084,0.15252001,115340.0,115330.0,0.17741541]
[1761554055316,0.63929815,115340.0,115330.0,0.17741541]
[1761554056562,0.15252001,115340.0,115330.0,0.17741541]
[1761554056687,0.63929815,115340.0,115330.0,0.17741541]
[1761554058431,0.69473815,115340.0,115330.0,0.17741541]
[1761554058630,0.20796001,115340.0,115330.0,0.17741541]
[1761554059289,1e-08,115340.0,115330.0,0.68153509]
[1761554059589,0.15256001,115340.0,115330.0,0.17741541]
[1761554059798,0.15256001,115340.0,115330.0,0.19475695]
[1761554060254,0.15256001,115340.0,115330.0,0.17741541]
[1761554061106,0.63933815,115340.0,115330.0,0.17741541]
[1761554061761,0.15256001,115340.0,115330.0,0.17741541]
[1761554061976,0.15256001,115340.0,115330.0,0.68153509]
[1761554062215,0.15256001,115340.0,115330.0,0.66419355]
[1761554062706,1e-08,115340.0,115330.0,0.66419355]
[1761554063169,1e-08,115340.0,115330.0,0.17741541]
[1761554063387,1e-08,115340.0,115330.0,0.68153509]
[1761554063599,1e-08,115340.0,115330.0,0.66419355]
[1761554063831,1e-08,115340.0,115330.0,0.17741541]
[1761554064036,1e-08,115340.0,115330.0,0.19475695]
[1761554066199,1e-08,115340.0,115330.0,0.96760124]
[1761554066461,1e-08,115340.0,115330.0,0.9502597]
[1761554068427,1e-08,115340.0,115330.0,0.9462597]
[1761554068637,1e-08,115340.0,115330.0,0.9532597]
[1761554069266,1e-08,115340.0,115330.0,0.5304154]
[1761554069676,1e-08,115340.0,115330.0,0.96325969]
[1761554070779,1e-08,115340.0,115330.0,1.17129969]
[1761554073132,1e-08,115340.0,115330.0,0.52041541]
[1761554073328,1e-08,115340.0,115330.0,0.67297541]
[1761554074192,1e-08,115340.0,115330.0,1.1058197]
[1761554075140,1e-08,115340.0,115330.0,1.55222645]
[1761554075367,0.23182686,115410.0,115390.0,0.17332524]
[1761554075592,0.6255026,115410.0,115400.0,0.17331022]
[1761554075979,0.62694465,115410.0,115400.0,0.17331022]
[1761554076184,0.60373418,115410.0,115400.0,0.17331022]
[1761554076383,0.17088989,115410.0,115400.0,0.17331022]
[1761554076589,0.58515779,115410.0,115400.0,0.17331022]
[1761554076762,0.17088989,115410.0,115400.0,0.17331022]
[1761554076960,0.58515779,115410.0,115400.0,0.17331022]
[1761554077167,0.60373418,115410.0,115400.0,0.17331022]
[1761554077627,0.17088989,115410.0,115400.0,0.17331022]
[1761554077877,0.56903216,115410.0,115400.0,0.17331022]
[1761554078025,0.58760855,115410.0,115400.0,0.17331022]
[1761554078628,0.58860855,115410.0,115400.0,0.17331022]
[1761554079202,0.58760855,115410.0,115400.0,0.17331022]
[1761554079632,0.58860855,115410.0,115400.0,0.17331022]
[1761554079767,0.15576426,115410.0,115400.0,0.17331022]
[1761554079973,0.13718787,115410.0,115400.0,0.17331022]
[1761554080175,0.57003216,115410.0,115400.0,0.17331022]
[1761554080376,0.15576426,115410.0,115400.0,0.17331022]
[1761554080577,0.57003216,115410.0,115400.0,0.17331022]
[1761554080782,0.58860855,115410.0,115400.0,0.17331022]
[1761554082046,0.15576426,115410.0,115400.0,0.17331022]
[1761554082248,0.57003216,115410.0,115400.0,0.17331022]
[1761554082459,0.58860855,115410.0,115400.0,0.17331022]
[1761554087694,0.15576426,115410.0,115400.0,0.17331022]
[1761554087895,0.57003216,115410.0,115400.0,0.17331022]
[1761554088047,0.15576426,115410.0,115400.0,0.17331022]
[1761554088235,0.57003216,115410.0,115400.0,0.17331022]
[1761554088434,0.58860855,115410.0,115400.0,0.17331022]
[1761554090892,0.76190375,115410.0,115400.0,0.17331022]
[1761554091513,0.58860855,115410.0,115400.0,0.17331022]
[1761554093067,0.76190375,115410.0,115400.0,0.17331022]
[1761554093289,0.76190375,115410.0,115390.0,0.17332524]
[1761554093469,1.11320531,115400.0,115380.0,0.18199444]
[1761554093702,0.6801709,115400.0,115390.0,0.17332524]
[1761554093905,0.8332109,115400.0,115380.0,0.18199444]
[1761554094107,0.40036661,115400.0,115380.0,0.18199444]
[1761554094702,0.40036661,115400.0,115390.0,0.002]
[1761554094846,1.26605519,115400.0,115380.0,0.18199444]
[1761554095041,0.43284429,115390.0,115380.0,0.18599444]
[1761554095328,0.38179022,115400.0,115380.0,0.18599444]
[1761554095457,0.43284429,115390.0,115380.0,0.18599444]
[1761554096510,0.43284429,115390.0,115380.0,0.18199444]
[1761554096882,0.43284429,115390.0,115380.0,0.18599444]
[1761554097559,0.45141882,115390.0,115380.0,0.18599444]
[1761554099513,0.45141882,115390.0,115380.0,0.18199444]
[1761554099915,0.62577428,115390.0,115380.0,0.18399444]
[1761554100770,0.66195656,115390.0,115380.0,0.002]
[1761554100971,0.66195656,115390.0,115380.0,0.17534026]
[1761554101450,0.22804475,115390.0,115380.0,0.17534026]
[1761554101657,0.66088904,115390.0,115380.0,0.17534026]
[1761554101862,0.01960475,115390.0,115380.0,0.17534026]
[1761554102069,0.21051022,115390.0,115380.0,0.17534026]
[1761554102284,0.21059022,115390.0,115380.0,0.17534026]
[1761554102497,0.00203022,115390.0,115380.0,0.19267428]
[1761554102706,0.64343451,115390.0,115380.0,0.19267428]
[1761554103556,0.64343451,115390.0,115380.0,0.19067428]
[1761554103770,0.21059022,115390.0,115380.0,0.19067428]
[1761554105333,0.64343451,115390.0,115380.0,0.19067428]
[1761554105507,0.64343451,115390.0,115380.0,0.17334026]
[1761554105896,0.21059022,115390.0,115380.0,0.17334026]
[1761554106292,0.15515022,115390.0,115380.0,0.19067428]
[1761554106504,0.21059022,115390.0,115380.0,0.19067428]
[1761554106682,0.21059022,115390.0,115380.0,0.17334026]
[1761554110882,0.21059022,115390.0,115380.0,0.19067428]
[1761554112705,0.00203022,115390.0,115380.0,0.19067428]
[1761554113073,0.15511022,115390.0,115380.0,0.19067428]
[1761554116284,0.15411022,115390.0,115380.0,0.19067428]
[1761554116493,0.15411022,115390.0,115380.0,0.19267428]
[1761554119310,0.15392038,115390.0,115380.0,0.19267428]
[1761554123595,0.17268689,115390.0,115380.0,0.17534026]
[1761554123787,0.15392038,115390.0,115380.0,0.19267428]
[1761554124172,0.15392038,115390.0,115380.0,0.17534026]
[1761554124759,0.00084038,115390.0,115380.0,0.62551857]
[1761554124964,0.15376038,115390.0,115380.0,0.60818455]
[1761554125133,0.15376038,115390.0,115380.0,0.17534026]
[1761554125796,0.15376038,115390.0,115380.0,0.65989143]
[1761554126215,0.15376038,115390.0,115380.0,0.66389143]
[1761554127966,0.15376038,115390.0,115380.0,0.17734026]
[1761554128175,0.15376038,115390.0,115380.0,0.68122545]
[1761554128498,0.15376038,115390.0,115380.0,0.66389143]
[1761554129218,0.00084038,115390.0,115380.0,0.17734026]
[1761554129418,0.00084038,115390.0,115380.0,0.68122545]
[1761554129676,0.00084038,115390.0,115380.0,0.66389143]
[1761554130430,0.00084038,115390.0,115380.0,0.51734026]
[1761554130631,0.00084038,115390.0,115380.0,1.00389143]
[1761554132158,0.00084038,115390.0,115380.0,0.51734026]
[1761554132357,0.00084038,115390.0,115380.0,1.00389143]
[1761554132623,0.00084038,115390.0,115380.0,0.51734026]
[1761554132734,0.00084038,115390.0,115380.0,1.00389143]
[1761554135305,0.00084038,115390.0,115380.0,0.51334026]
[1761554135916,0.00084038,115390.0,115380.0,0.99989143]
[1761554136149,0.00084038,115390.0,115380.0,1.00689143]
[1761554136289,0.00084038,115390.0,115380.0,0.52034026]
[1761554138462,0.97394272,115390.0,115380.0,0.52034026]
[1761554138710,0.64035155,115390.0,115380.0,0.18034026]
[1761554139994,0.64035155,115390.0,115380.0,0.17334026]
[1761554140382,0.15380038,115390.0,115380.0,0.17734026]
[1761554140590,0.64035155,115390.0,115380.0,0.17734026]
[1761554140787,0.64035155,115390.0,115380.0,0.004]
[1761554140788,1.30022796,115390.0,115380.0,0.004]
[1761554142197,1.30022796,115390.0,115370.0,0.18198017]
[1761554142418,1.02854234,115380.0,115370.0,0.18198017]
[1761554143098,0.54199117,115380.0,115370.0,0.18198017]
[1761554143658,0.54199117,115380.0,115370.0,0.18398017]
[1761554144062,1.2018826,115380.0,115370.0,0.002]
[1761554144831,1.2018826,115380.0,115370.0,0.17535529]
[1761554145393,1.2018826,115380.0,115370.0,0.17335529]
[1761554145567,1.02854234,115380.0,115370.0,0.17335529]
[1761554145740,1.2018826,115380.0,115370.0,0.17335529]
[1761554146589,1.2018826,115380.0,115360.0,0.17337031]
[1761554146788,0.83167297,115370.0,115360.0,0.17337031]
[1761554146995,0.63955117,115370.0,115360.0,0.17337031]
[1761554148066,0.63967754,115370.0,115360.0,0.17337031]
[1761554148594,0.63967754,115370.0,115360.0,0.17537031]
[1761554148798,0.81303283,115370.0,115350.0,0.18200561]